Workbook

Sheet Лист1
A6: Примерное меню по МБДОУ №1 "Березка"
A7: Сармановского муниципального района РТ
A8: на 1 полугодие 2020 г. (сентябрь-февраль)
A9: Прием пищи | B9: Наименование блюда | C9: Выход блюда(гр) | E9: Пищевые вещества(г) | K9: Энергетическая ценность (ккал) | M9: Витамин С(мг) | O9: № тех. Карты
E10: Б | G10: Ж | I10: У
A12: День 1 понедельник | C12: ясел. | D12: стар | E12: ясел. | F12: стар | G12: ясел. | H12: стар | I12: ясел. | J12: стар | K12: ясел. | L12: стар | M12: ясел. | N12: стар
A13: Завтрак | B13: Каша гречневая с маслом | C13: 150 | D13: 180 | E13: 15.00 | F13: 17.00 | G13: 11.00 | H13: 12.00 | I13: 48.00 | J13: 54.00 | K13: 118.00 | L13: 157.00 | M13: 0.17 | N13: 0.26 | O13: 2
B14: Кисель | C14: 150 | D14: 180 | I14: 15.57 | J14: 17.64 | K14: 63.53 | L14: 72.00 | M14: 22.50 | N14: 27.00 | O14: 75
B15: Хлеб с маслом | C15: 30 | D15: 40 | E15: 6.00 | F15: 7.99 | G15: 0.69 | H15: 0.92 | I15: 12.61 | J15: 16.81 | K15: 101.73 | L15: 135.64 | O15: 45
B16: Сыр | C16: 8 | D16: 12 | E16: 2.08 | F16: 3.12 | G16: 2.15 | H16: 3.22 | K16: 28.16 | L16: 42.24 | M16: 0.10 | N16: 0.13 | O16: 46
A21: 2 завтрак | B21: Сок | C21: 200 | D21: 200 | E21: 2.00 | F21: 2.00 | G21: 0.20 | H21: 0.20 | I21: 20.20 | J21: 20.20 | K21: 86.34 | L21: 86.34 | M21: 3.00 | N21: 3.60 | O21: 49
A22: обед | B22: Рассольник на курином бульоне со сметаной | C22: 150 | D22: 200 | E22: 3.28 | F22: 3.72 | G22: 4.80 | H22: 5.44 | I22: 16.70 | J22: 18.93 | K22: 116.10 | L22: 131.58 | M22: 19.80 | N22: 21.49 | O22: 8
B24: Куры отварные | C24: 70 | D24: 80 | E24: 17.83 | F24: 20.21 | G24: 15.00 | H24: 17.00 | I24: 0.29 | J24: 0.33 | K24: 206.60 | L24: 234.15 | O24: 38
B25: со сметаной
B26: Макароны отварные | C26: 150 | D26: 160 | E26: 5.00 | F26: 5.71 | G26: 0.52 | H26: 0.59 | I26: 0.80 | J26: 0.91 | K26: 146.97 | L26: 167.97 | O26: 1
B28: Компот из сухофруктов | C28: 180 | D28: 200 | E28: 0.94 | F28: 1.04 | I28: 24.26 | J28: 26.96 | K28: 96.70 | L28: 107.45 | M28: 0.30 | N28: 0.36 | O28: 36
B30: Салат из свежих овощей | C30: 50 | D30: 60 | E30: 0.59 | F30: 0.59 | G30: 4.28 | H30: 4.28 | I30: 2.28 | J30: 2.28 | K30: 56.58 | L30: 56.58 | M30: 22.08 | N30: 23.88 | O30: 54
B31: Хлеб | C31: 40 | D31: 50 | E31: 3.04 | F31: 3.80 | G31: 0.36 | H31: 0.48 | I31: 19.88 | J31: 26.51 | K31: 90.40 | L31: 113.00 | O31: 51
A33: Упл. полдник | B33: Тефтели рыбные | C33: 70 | D33: 80 | E33: 8.70 | F33: 9.28 | G33: 2.81 | H33: 2.99 | I33: 9.01 | J33: 9.68 | K33: 96.56 | L33: 103.00 | M33: 1.01 | N33: 1.18 | O33: 57
B34: Отварной картофель | C34: 140 | D34: 150 | E34: 2.75 | F34: 2.95 | G34: 3.95 | H34: 4.15 | I34: 15.10 | J34: 15.30 | K34: 134.81 | L34: 140.80 | M34: 13.50 | N34: 14.08 | O34: 76
B36: Зеленый горошек | C36: 20 | D36: 20 | E36: 0.58 | F36: 0.58 | G36: 1.68 | H36: 1.68 | I36: 1.03 | J36: 1.03 | K36: 26.94 | L36: 26.94 | O36: 68
B37: Чай с молоком | C37: 150 | D37: 180 | E37: 0.71 | F37: 0.80 | G37: 0.88 | H37: 0.99 | I37: 12.00 | J37: 13.50 | K37: 49.79 | L37: 56.01 | M37: 1.19 | N37: 1.20 | O37: 28
B38: Хлеб | C38: 30 | D38: 40 | E38: 1.84 | F38: 2.45 | G38: 0.64 | H38: 0.85 | I38: 12.56 | J38: 16.75 | K38: 64.33 | L38: 85.77 | O38: 51
B39: Фрукты | C39: 200 | D39: 200 | E39: 0.80 | F39: 0.80 | G39: 0.80 | H39: 0.80 | I39: 19.60 | J39: 19.60 | K39: 88.00 | L39: 88.00 | M39: 10.40 | N39: 10.50 | O39: 52
B40: Пряник | C40: 40 | D40: 40 | E40: 0.67 | F40: 1.92 | G40: 0.39 | H40: 1.12 | I40: 10.88 | J40: 31.08 | K40: 47.02 | L40: 134.32 | O40: 69
A42: Итого за день | E42: =SUM(E13:E41) -> 71.81 | F42: 83.96 | G42: 50.15 | H42: 56.71 | I42: 240.77 | J42: 291.51 | K42: 1618.56 | L42: 1938.79 | M42: 94.05 | N42: 103.68
A46: День2 вторник
A47: Завтрак | B47: Каша кукурузная молочная | C47: 150 | D47: 200 | E47: 6.16 | F47: 7.04 | G47: 6.37 | H47: 7.28 | I47: 24.85 | J47: 28.40 | K47: 182.00 | L47: 208.00 | M47: 1.56 | N47: 2.08 | O47: 78
B49: Какао с молоком | C49: 150 | D49: 180 | E49: 4.65 | F49: 5.27 | G49: 4.80 | H49: 5.44 | I49: 16.77 | J49: 19.00 | K49: 127.37 | L49: 144.35 | M49: 1.20 | N49: 1.43 | O49: 30
B51: Хлеб с маслом | C51: 30 | D51: 40 | E51: 6.00 | F51: 7.99 | G51: 0.69 | H51: 0.92 | I51: 12.61 | J51: 16.81 | K51: 101.73 | L51: 135.64 | O51: 45
B52: Тертая морковь с сахаром | C52: 40 | D52: 50 | E52: 0.59 | F52: 0.59 | G52: 4.28 | H52: 4.28 | I52: 2.28 | J52: 2.28 | K52: 56.58 | L52: 56.58 | M52: 22.08 | N52: 23.88 | O52: 37
A54: 2 завтрак | B54: Ряженка | C54: 100 | D54: 150 | I54: 14.70 | J54: 17.60 | K54: 60.00 | L54: 72.00 | M54: 22.50 | N54: 27.00 | O54: 48
A56: обед | B56: Свекольник на мясном бульоне, со сметаной | C56: 150 | D56: 200 | E56: 3.38 | F56: 4.06 | G56: 5.20 | H56: 6.24 | I56: 11.03 | J56: 13.24 | K56: 116.10 | L56: 139.32 | M56: 19.92 | N56: 24.37 | O56: 7
B58: Вак бэлеш | C58: 130 | D58: 140 | E58: 13.71 | F58: 14.69 | G58: 12.47 | H58: 13.36 | I58: 31.88 | J58: 34.16 | K58: 296.90 | L58: 318.11 | M58: 1.48 | N58: 1.69 | O58: 60
B60: Компот из сухофруктов | C60: 150 | D60: 180 | E60: 0.94 | F60: 1.04 | I60: 24.26 | J60: 26.96 | K60: 96.70 | L60: 107.45 | M60: 0.30 | N60: 0.36 | O60: 36
B62: Хлеб | C62: 40 | D62: 50 | E62: 3.04 | F62: 3.80 | G62: 0.36 | H62: 0.48 | I62: 19.88 | J62: 26.51 | K62: 90.40 | L62: 113.00 | O62: 45
A64: Упл. полдник | B64: Творожно - морковный пудинг | C64: 90 | D64: 100 | E64: 13.85 | F64: 16.62 | G64: 12.31 | H64: 14.77 | I64: 28.46 | J64: 34.15 | K64: 280.77 | L64: 336.92 | M64: 2.12 | N64: 2.24 | O64: 22
B66: Со сгущенкорй | C66: 20 | D66: 20 | E66: 19.20 | F66: 19.20 | G66: 2.34 | H66: 2.34 | I66: 3.10 | J66: 3.10 | K66: 41.40 | L66: 41.40
B68: Чай с молоком с сахаром | C68: 150 | D68: 180 | E68: 0.11 | F68: 0.13 | G68: 0.02 | H68: 0.03 | I68: 11.04 | J68: 12.42 | K68: 43.20 | L68: 48.60 | M68: 1.42 | N68: 2.83 | O68: 28
B70: Хлеб | C70: 30 | D70: 40 | E70: 1.84 | F70: 2.45 | G70: 0.64 | H70: 0.85 | I70: 12.56 | J70: 16.75 | K70: 64.33 | L70: 85.77 | O70: 45
A72: Итого | E72: =SUM(E47:E71) -> 73.47 | F72: 82.88 | G72: 49.48 | H72: 55.99 | I72: 213.42 | J72: 251.38 | K72: 1557.48 | L72: 1807.14 | M72: 72.58 | N72: 85.88
A78: День3 среда
A79: Завтрак | B79: Каша пшенная молочная | C79: 150 | D79: 200 | E79: 5.26 | F79: 6.31 | G79: 6.07 | H79: 8.04 | I79: 21.29 | J79: 25.55 | K79: 159.70 | L79: 191.64 | M79: 1.56 | N79: 2 ,08 | O79: 5
B81: Хлеб с маслом | C81: 30 | D81: 40 | E81: 6.00 | F81: 7.99 | G81: 0.69 | H81: 0.92 | I81: 12.61 | J81: 16.81 | K81: 101.73 | L81: 135.64 | O81: 45
B83: Кофейный напиток | C83: 150 | D83: 180 | E83: 3.66 | F83: 4.12 | G83: 4.04 | H83: 3.22 | I83: 17.20 | J83: 19.35 | K83: 116.27 | L83: 130.80 | M83: 0.98 | N83: 1.17 | O83: 29
B84: Сыр | C84: 8 | D84: 12 | E84: 2.08 | F84: 3.12 | G84: 2.15 | H84: 4.54 | K84: 28.16 | L84: 42.24 | M84: 0.10 | N84: 0.13 | O84: 46
A85: 2 завтрак | B85: Сок | C85: 200 | D85: 200 | E85: 6.10 | F85: 6.10 | G85: 5.44 | H85: 5.44 | I85: 10.10 | J85: 10.10 | K85: 113.34 | L85: 113.34 | M85: 3.00 | N85: 3.00 | O85: 49
A87: обед | B87: Суп крестьянский на мясном бульоне со сметоной | C87: 150 | D87: 200 | E87: 1.81 | F87: 2.05 | G87: 1.21 | H87: 1.38 | I87: 9.90 | J87: 11.22 | K87: 69.00 | L87: 78.20 | M87: 15.88 | N87: 18.89 | O87: 39
B89: Гуляш | C89: 70 | D89: 80 | E89: 8.96 | F89: 10.24 | G89: 7.21 | H89: 8.24 | I89: 2.31 | J89: 2.64 | K89: 109.90 | L89: 125.60 | M89: 0.09 | N89: 0.12 | O89: 13
B90: Картофельное пюре | C90: 140 | D90: 160 | E90: 2.85 | F90: 3.20 | G90: 0.45 | H90: 0.51 | I90: 19.08 | J90: 21.81 | K90: 128.10 | L90: 146.40 | M90: 14.50 | N90: 19.40 | O90: 9
B92: Суп домашней лапшой на мясном бульоне | C92: 150 | D92: 180 | E92: 1.32 | F92: 1.48 | G92: 3.04 | H92: 2.23 | I92: 7.15 | J92: 9.05 | K92: 61.30 | L92: 62.28 | M92: 15.88 | N92: 18.89 | O92: 35
B93: Салат из свежих овощей | C93: 50 | D93: 60 | E93: 0.59 | F93: 0.59 | G93: 4.28 | H93: 4.28 | I93: 2.28 | J93: 2.28 | K93: 56.58 | L93: 56.58 | M93: 22.08 | N93: 23.88 | O93: 54
B94: Компот из сухофруктов | C94: 150 | D94: 180 | E94: 0.94 | F94: 1.04 | I94: 24.26 | J94: 26.96 | K94: 96.70 | L94: 107.45 | M94: 0.30 | N94: 0.36 | O94: 36
B95: Хлеб | C95: 40 | D95: 50 | E95: 3.04 | F95: 3.80 | G95: 0.36 | H95: 0.48 | I95: 19.88 | J95: 26.51 | K95: 90.40 | L95: 113.00 | O95: 45
A97: Упл. полдник | B97: Рыба тушенная с овощами | C97: 75 | D97: 80 | E97: 7.13 | F97: 7.60 | G97: 3.61 | H97: 3.85 | I97: 2.06 | J97: 2.20 | K97: 69.38 | L97: 74.00 | M97: 1.86 | N97: 1.88 | O97: 21
B99: Рис отварной | C99: 130 | D99: 150 | E99: 3.12 | F99: 3.6 | G99: 4.68 | H99: 5.4 | I99: 31.72 | J99: 36.6 | K99: 180.7 | L99: 208.5 | O99: 32
C100: 130 | D100: 150 | E100: 3.12 | F100: 3.6 | G100: 4.68 | H100: 5.4 | I100: 31.72 | J100: 36.6 | K100: 180.7 | L100: 208.5 | O100: 32
B101: Чай с сахаром | C101: 150 | D101: 180 | E101: 10.80 | F101: 12.00 | G101: 2.75 | H101: 3.06 | I101: 11.70 | J101: 13.00 | K101: 44.35 | L101: 49.28 | M101: 0.02 | N101: 0.03 | O101: 26
B103: Хлеб | C103: 30 | D103: 40 | E103: 1.84 | F103: 2.45 | G103: 0.64 | H103: 0.85 | I103: 12.56 | J103: 16.75 | K103: 64.33 | L103: 85.77 | O103: 45
B104: Фрукты | C104: 200 | D104: 200 | E104: 0.80 | F104: 0.80 | G104: 0.80 | H104: 0.80 | I104: 19.60 | J104: 19.60 | K104: 88.00 | L104: 88.00 | M104: 10.40 | N104: 10.50 | O104: 52
A105: Итого за день | E105: =SUM(E79:E104) -> 69.42 | F105: 80.09 | G105: 52.10 | H105: 58.64 | I105: 255.42 | J105: 297.03 | K105: 1758.64 | L105: 2017.22 | M105: 86.65 | N105: 98.25
A109: День 4 четверг
A110: Завтрак | B110: Каша пшеничная молочная | C110: 150 | D110: 200 | E110: 5.26 | F110: 5.96 | G110: 6.07 | H110: 6.88 | I110: 21.29 | J110: 24.13 | K110: 159.25 | L110: 180.48 | M110: 1.56 | N110: 2.08 | O110: 3
B112: Какао с молоком | C112: 150 | D112: 180 | E112: 4.65 | F112: 5.27 | G112: 4.80 | H112: 5.44 | I112: 16.77 | J112: 19.00 | K112: 127.37 | L112: 144.35 | M112: 1.20 | N112: 1.43 | O112: 30
B113: Хлеб пшеничный с маслом | C113: 40 | D113: 50 | E113: 3.19 | F113: 3.55 | G113: 4.56 | H113: 5.70 | I113: 20.43 | J113: 23.20 | K113: 103.00 | L113: 114.50 | O113: 2
B114: Хлеб с маслом | C114: 30 | D114: 40 | E114: 6.00 | F114: 7.99 | G114: 0.69 | H114: 0.92 | I114: 12.61 | J114: 16.81 | K114: 101.73 | L114: 135.64
B115: Тертая морковь с сахаром | C115: 40 | D115: 50 | E115: 0.59 | F115: 0.59 | G115: 4.28 | H115: 4.28 | I115: 2.28 | J115: 2.28 | K115: 56.58 | L115: 56.58 | M115: 22.08 | N115: 23.88 | O115: 37
A117: 2 завтрак | B117: Кисель | C117: 150 | D117: 180 | I117: 16.60 | J117: 17.64 | K117: 67.76 | L117: 72.00 | M117: 22.50 | N117: 27.00 | O117: 75
A119: обед | B119: Суп домашней лапшой на мясном бульоне | C119: 150 | D119: 200 | E119: 1.32 | F119: 1.48 | G119: 3.04 | H119: 2.23 | I119: 7.15 | J119: 9.05 | K119: 61.30 | L119: 62.28 | M119: 15.88 | N119: 18.89 | O119: 35
B120: Суп домашней лапшой на мясном бульоне | C120: 150 | D120: 180 | E120: 1.32 | F120: 1.48 | G120: 3.04 | H120: 2.23 | I120: 7.15 | J120: 9.05 | K120: 61.30 | L120: 62.28 | M120: 15.88 | N120: 18.89 | O120: 35
B121: Котлета мясная | C121: 50 | D121: 60 | E121: 8.49 | F121: 10.8 | G121: 6.36 | H121: 8.1 | I121: 8.56 | J121: 10.9 | K121: 110 | L121: 160 | M121: 1.01 | N121: 1.26 | O121: 33
B123: Гречка отварная | C123: 150 | D123: 160 | E123: 7.41 | F123: 8.55 | G123: 6.27 | H123: 7.23 | I123: 32.69 | J123: 37.72 | K123: 234.44 | L123: 270.51 | M123: 18.89 | N123: 18.91 | O123: 2
C124: 50 | D124: 75
B125: Томатный соус | C125: 30 | D125: 30 | E125: 0.35 | F125: 0.35 | G125: 1.26 | H125: 1.26 | I125: 2.41 | J125: 2.41 | K125: 22.35 | L125: 22.35
B127: Салат из свежих овощей | C127: 50 | D127: 60 | E127: 0.59 | F127: 0.59 | G127: 4.28 | H127: 4.28 | I127: 2.28 | J127: 2.28 | K127: 56.58 | L127: 56.58 | M127: 22.08 | N127: 23.88 | O127: 54
B128: Компот из сухофруктов | C128: 150 | D128: 180 | E128: 0.94 | F128: 1.04 | I128: 24.26 | J128: 26.96 | K128: 96.70 | L128: 107.45 | M128: 0.3 | N128: 0.36 | O128: 36
B129: Хлеб | C129: 40 | D129: 50 | E129: 3.04 | F129: 3.80 | G129: 0.36 | H129: 0.48 | I129: 19.88 | J129: 26.51 | K129: 90.40 | L129: 113.00 | O129: 45
A131: Упл. полдник | B131: Творожно- рисовая запеканка | C131: 90 | D131: 100 | E131: 14.87 | F131: 19.33 | G131: 10.18 | H131: 13.23 | I131: 31.38 | J131: 40.79 | K131: 277 | L131: 360.1 | M131: 0.64 | N131: 0.76 | O131: 63
B133: Сметанный соус | C133: 20 | D133: 30 | E133: 0.74 | F133: 1.10 | G133: 1.11 | H133: 1.66 | I133: 1.59 | J133: 2.38 | K133: 26.73 | L133: 40.09 | M133: 0.05 | N133: 0.06 | O133: 68
B135: Чай с молоком | C135: 150 | D135: 180 | E135: 0.71 | F135: 0.80 | G135: 0.88 | H135: 0.99 | I135: 12.00 | J135: 13.50 | K135: 49.79 | L135: 56.01 | M135: 1.19 | N135: 1.2 | O135: 28
B137: Хлеб | C137: 30 | D137: 40 | E137: 1.84 | F137: 2.45 | G137: 0.64 | H137: 0.85 | I137: 12.56 | J137: 16.74 | K137: 64.33 | L137: 85.77 | O137: 45
B138: Вафли | C138: 40 | D138: 40 | E138: 0.41 | F138: 1.17 | G138: 0.47 | H138: 1.33 | I138: 10.85 | J138: 31.00 | K138: 49.24 | L138: 141.67 | O138: 69
B139: вафли | C139: 20 | D139: 20 | E139: 0.64 | F139: 0.64 | G139: 0.56 | H139: 0.56 | I139: 16.22 | J139: 16.22 | K139: 68.42 | L139: 68.42
A140: Итого | E140: 60.1 | F140: 78.72 | G140: 46.83 | H140: 61.51 | I140: 228.82 | J140: 313.87 | K140: 1606.25 | L140: 2174.08 | M140: =SUM(M110:M139) -> 123.26 | N140: =SUM(N110:N139) -> 138.6
A146: День 5 пятница
A147: Завтрак | B147: Суп молочный с вермишелью | C147: 150 | D147: 200 | E147: 4.39 | F147: 5.75 | G147: 4.36 | H147: 5.21 | I147: 14.99 | J147: 18.8 | K147: 116.20 | L147: 145.2 | M147: 0.68 | N147: 0.9 | O147: 16
B149: Хлеб с маслом | C149: 30 | D149: 40 | E149: 6.00 | F149: 7.99 | G149: 0.69 | H149: 0.92 | I149: 12.61 | J149: 16.81 | K149: 101.73 | L149: 135.64 | O149: 45
B151: Сыр | C151: 8 | D151: 12 | E151: 2.08 | F151: 3.12 | G151: 2.15 | H151: 3.22 | K151: 28.16 | L151: 42.24 | M151: 0.12 | N151: 0.18 | O151: 46
B152: Кофейный напиток | C152: 150 | D152: 180 | E152: 3.66 | F152: 4.12 | G152: 4.04 | H152: 4.54 | I152: 17.20 | J152: 19.35 | K152: 116.27 | L152: 130.80 | M152: 0.98 | N152: 11.70 | O152: 29
A154: 2 завтрак | B154: Сок | C154: 200 | D154: 200 | E154: 6.10 | F154: 6.10 | G154: 5.44 | H154: 5.44 | I154: 10.10 | J154: 10.10 | K154: 113.34 | L154: 113.34 | M154: 3.00 | N154: 3.00 | O154: 49
B156: Салат из тертой моркови(с 1.03 из вар. морк) | C156: 40 | D156: 60 | E156: 0.40 | F156: 0.50 | G156: 1.80 | H156: 2.50 | I156: 2.30 | J156: 3.10 | K156: 27.60 | L156: 36.80 | M156: 2.85 | N156: 3.80 | O156: 15\1
A157: обед | B157: Суп геркулесовый на мясном бульоне со сметаной | C157: 150 | D157: 200 | E157: 3.00 | F157: 3.40 | G157: 1.92 | H157: 2.18 | I157: 8.03 | J157: 9.10 | K157: 76.17 | L157: 86.33 | M157: 0.68 | N157: 0.68 | O157: 65
B159: Овощное рагу с мясом | C159: 150 | D159: 160 | E159: 14.77 | F159: 15.64 | G159: 16.03 | H159: 16.97 | I159: 12.73 | J159: 13.48 | K159: 254.51 | L159: 269.48 | M159: 33.72 | N159: 36.61 | O159: 67
B161: Компот из сухофруктов | C161: 180 | D161: 200 | E161: 0.94 | F161: 1.04 | I161: 24.26 | J161: 26.96 | K161: 96.70 | L161: 107.45 | M161: 0.30 | N161: 0.36 | O161: 36
B163: Хлеб | C163: 40 | D163: 50 | E163: 3.04 | F163: 3.80 | G163: 0.36 | H163: 0.48 | I163: 19.88 | J163: 26.51 | K163: 90.40 | L163: 113.00 | O163: 45
A165: Упл. полдник | B165: Омлет натуральный | C165: 50 | D165: 60 | E165: 6.79 | F165: 6.79 | G165: 16.32 | H165: 16.32 | I165: 2.85 | J165: 2.85 | K165: 184.00 | L165: 184.00 | M165: 1.93 | N165: 2.29 | O165: 58
B168: Чай с молоком с сахаром | C168: 150 | D168: 180 | E168: 0.11 | F168: 0.13 | G168: 0.02 | H168: 0.03 | I168: 11.04 | J168: 12.42 | K168: 43.20 | L168: 48.60 | M168: 1.42 | N168: 2.83 | O168: 28
B170: Хлеб | C170: 30 | D170: 40 | E170: 1.84 | F170: 2.45 | G170: 0.64 | H170: 0.85 | I170: 12.56 | J170: 16.75 | K170: 64.33 | L170: 85.77 | O170: 45
B172: Фрукты | C172: 200 | D172: 200 | E172: 0.80 | F172: 0.80 | G172: 0.80 | H172: 0.80 | I172: 19.60 | J172: 19.60 | K172: 88.00 | L172: 88.00 | M172: 10.40 | N172: 10.40 | O172: 52
B173: К
A174: Итого | E174: 53.63 | F174: 61.43 | G174: 53.28 | H174: 58.40 | I174: 171.58 | J174: 209.09 | K174: 1400.94 | L174: 1629.65 | M174: 53.23 | N174: 58.42
A178: День 6 понедельник
A179: Завтрак | B179: Макароны отварные с маслом | C179: 130 | D179: 150 | E179: 4.42 | F179: 5.1 | G179: 6 | H179: 6.92 | I179: 26.1 | J179: 30.11 | K179: 179 | L179: 206.54 | O179: 1.00
B181: Яйцо 1/2 | C181: 1900-01-20 | D181: 1900-01-20 | E181: 5.20 | F181: 5.20 | G181: 4.80 | H181: 4.80 | I181: 4.00 | J181: 4.00 | K181: 62.80 | L181: 62.80 | O181: 50
B182: Хлеб пшеничный с маслом | C182: 40 | D182: 50 | E182: 3.19 | F182: 3.55 | G182: 4.56 | H182: 5.70 | I182: 20.43 | J182: 23.20 | K182: 103.00 | L182: 114.50 | O182: 2
B183: Хлеб с маслом | C183: 30 | D183: 40 | E183: 6.00 | F183: 7.99 | G183: 0.69 | H183: 0.92 | I183: 12.61 | J183: 16.81 | K183: 101.73 | L183: 135.64 | O183: 45
B184: Чай с молоком с сахаром | C184: 150 | D184: 180 | E184: 0.11 | F184: 0.13 | G184: 0.02 | H184: 0.03 | I184: 11.04 | J184: 12.42 | K184: 43.20 | L184: 48.60 | M184: 1.42 | N184: 2.83 | O184: 27
A186: 2 завтрак | B186: Кисель | C186: 150 | D186: 180 | E186: 2 | F186: 2 | G186: 0.2 | H186: 0.2 | I186: 20.2 | J186: 20.2 | K186: 86.34 | L186: 86.34 | M186: 4 | N186: 4 | O186: 75
A189: обед | B189: Суп гороховый на курином бульоне со сметаной | C189: 150 | D189: 200 | E189: 6.19 | F189: 6.96 | G189: 3.70 | H189: 4.16 | I189: 26.66 | J189: 30.00 | K189: 164.80 | L189: 185.39 | M189: 20.21 | N189: 23.34 | O189: 43
B191: Куры отварные | C191: 70 | D191: 80 | E191: 17.83 | F191: 20.21 | G191: 15 | H191: 17 | I191: 0.29 | J191: 0.33 | K191: 206.6 | L191: 234.15 | O191: 38
B193: Рис рассыпчатый | C193: 130 | D193: 150 | E193: 3.12 | F193: 3.6 | G193: 4.68 | H193: 5.4 | I193: 31.72 | J193: 36.6 | K193: 180.7 | L193: 208.5 | O193: 32
B194: Салат из свежих овощей | C194: 50 | D194: 60 | E194: 0.59 | F194: 0.59 | G194: 4.28 | H194: 4.28 | I194: 2.28 | J194: 2.28 | K194: 56.58 | L194: 56.58 | M194: 22.08 | N194: 23.88 | O194: 54
B195: Компот из сухофруктов | C195: 180 | D195: 200 | E195: 0.94 | F195: 1.04 | I195: 24.26 | J195: 26.96 | K195: 96.70 | L195: 107.45 | M195: 0.3 | N195: 0.36 | O195: 36
B197: Хлеб | C197: 40 | D197: 50 | E197: 3.04 | F197: 3.80 | G197: 0.36 | H197: 0.48 | I197: 19.88 | J197: 26.51 | K197: 90.40 | L197: 113.00 | O197: 45
A199: Упл. полдник | B199: Суп из рыбных консервов | C199: 150 | D199: 200 | E199: 21.55 | F199: 22.82 | G199: 0.76 | H199: 0.8 | I199: 5.5 | J199: 5.82 | K199: 107.03 | L199: 113.32 | M199: 5.1 | N199: 5.18 | O199: 75
B201: Печенье | C201: 40 | D201: 40 | E201: 0.67 | F201: 1.92 | G201: 0.39 | H201: 1.12 | I201: 10.88 | J201: 31.08 | K201: 47.02 | L201: 134.32 | O201: 69
B203: Чай с молоком | C203: 150 | D203: 180 | E203: 0.71 | F203: 0.80 | G203: 0.88 | H203: 0.99 | I203: 12.00 | J203: 13.50 | K203: 49.79 | L203: 56.01 | M203: 1.19 | N203: 1.2 | O203: 28
B205: Хлеб | C205: 30 | D205: 40 | E205: 1.84 | F205: 2.45 | G205: 0.64 | H205: 0.85 | I205: 12.56 | J205: 16.75 | K205: 64.33 | L205: 85.77 | O205: 45
A208: Итого за день | E208: 74.71 | F208: 87.4 | G208: 44.69 | H208: 54.1 | I208: 217.45 | J208: 275.18 | K208: 1562.44 | L208: 1915.17 | M208: =SUM(M179:M207) -> 54.3 | N208: =SUM(N179:N207) -> 60.79
A211: День 7 вторник
A212: Завтрак | B212: Каша "Дружба" из пшена и риса | C212: 150 | D212: 200 | E212: 4.74 | F212: 5.34 | G212: 7.63 | H212: 8.65 | I212: 19.76 | J212: 22.39 | K212: 167.37 | L212: 189.71 | M212: 1.56 | N212: 2.08 | O212: 74
B214: Какао с молоком | C214: 150 | D214: 180 | E214: 4.65 | F214: 5.27 | G214: 4.80 | H214: 5.44 | I214: 16.77 | J214: 19.00 | K214: 127.37 | L214: 144.35 | M214: 1.20 | N214: 1.43 | O214: 30
B216: Сыр | C216: 8 | D216: 12 | E216: 2.08 | F216: 3.12 | G216: 2.15 | H216: 4.54 | K216: 28.16 | L216: 42.24 | M216: 0.10 | N216: 0.13 | O216: 46
B217: Тёртая морковь с сахаром | C217: 40 | D217: 50 | E217: 0.59 | F217: 0.59 | G217: 4.28 | H217: 4.28 | I217: 2.28 | J217: 2.28 | K217: 56.58 | L217: 56.58 | M217: 22.08 | N217: 23.88 | O217: 37
A220: 2 завтрак | B220: Ряженка | C220: 100 | D220: 150 | E220: 6.10 | F220: 6.10 | G220: 5.44 | H220: 5.44 | I220: 10.10 | J220: 10.10 | K220: 113.34 | L220: 113.34 | M220: 3.00 | N220: 3.00 | O220: 48
A222: обед | B222: Борщ с капустой, с картофе- лем на мясном бульоне со сметаной | C222: 150 | D222: 200 | E222: 2.13 | F222: 2.57 | G222: 3.06 | H222: 3.67 | I222: 8.72 | J222: 10.46 | K222: 70.90 | L222: 85.08 | M222: 29.56 | N222: 39.29 | O222: 55
B224: Треугольники с мясом | C224: 130 | D224: 140 | E224: 13.71 | F224: 14.69 | G224: 12.47 | H224: 13.36 | I224: 31.88 | J224: 34.16 | K224: 296.90 | L224: 318.11 | M224: 1.48 | N224: 1.69 | O224: 60
B226: Компот из сухофруктов | C226: 180 | D226: 200 | E226: 0.94 | F226: 1.04 | I226: 24.26 | J226: 26.96 | K226: 96.70 | L226: 107.45 | M226: 0.30 | N226: 0.36 | O226: 36
B228: Хлеб | C228: 40 | D228: 50 | E228: 3.04 | F228: 3.80 | G228: 0.36 | H228: 0.48 | I228: 19.88 | J228: 26.51 | K228: 90.40 | L228: 113.00 | O228: 45
A230: Упл. полдник | B230: Королевская ватрушка | C230: 90 | D230: 100 | E230: 9.82 | F230: 12.76 | G230: 15.06 | H230: 19.58 | I230: 33.17 | J230: 43.12 | K230: 303.52 | L230: 394.57 | M230: 0.38 | N230: 0.5 | O230: 64
B232: Чай с молоком с сахаром | C232: 150 | D232: 180 | E232: 0.11 | F232: 0.13 | G232: 0.02 | H232: 0.03 | I232: 11.04 | J232: 12.42 | K232: 43.20 | L232: 48.60 | M232: 1.42 | N232: 2.83 | O232: 28
B233: Хлеб | C233: 30 | D233: 40 | E233: 1.84 | F233: 2.45 | G233: 0.64 | H233: 0.85 | I233: 12.56 | J233: 16.75 | K233: 64.33 | L233: 85.77
A234: Итого за день | E234: =SUM(E212:E233) -> 49.75 | F234: 57.86 | G234: 55.91 | H234: 66.32 | I234: 190.42 | J234: 224.15 | K234: 1458.77 | L234: 1698.80 | M234: 61.08 | N234: 75.19
A238: День 8 среда
A239: Завтрак | B239: Кашам ячневая молочная | C239: 150 | D239: 200 | E239: 2.00 | F239: 2.40 | G239: 2.70 | H239: 3.24 | I239: 21.60 | J239: 25.92 | K239: 125.20 | L239: 150.24 | M239: 1.56 | N239: 2.08 | O239: 4
B241: Кофейный напиток | C241: 150 | D241: 180 | E241: 3.66 | F241: 4.12 | G241: 4.04 | H241: 4.54 | I241: 17.20 | J241: 19.35 | K241: 116.27 | L241: 130.80 | M241: 0.34 | N241: 0.98 | O241: 29
B242: Хлеб пшеничный с маслом | C242: 40 | D242: 50 | E242: 3.19 | F242: 3.55 | G242: 4.56 | H242: 5.70 | I242: 103.00 | J242: 23.20 | K242: 103.00 | L242: 114.50 | O242: 2
B243: Хлеб с маслом | C243: 30 | D243: 40 | E243: 6.00 | F243: 7.99 | G243: 0.69 | H243: 0.92 | I243: 12.61 | J243: 16.81 | K243: 101.73 | L243: 135.64 | O243: 45
A245: 2 завтрак | B245: Сок | C245: 200 | D245: 200 | E245: 2.00 | F245: 2.00 | G245: 0.20 | H245: 0.20 | I245: 20.20 | J245: 20.20 | K245: 86.34 | L245: 86.34 | M245: 4.00 | N245: 4.00 | O245: 49
A247: Обед | B247: Суп вермешелевый на мясном бульоне | C247: 150 | D247: 200 | E247: 2.61 | F247: 3.13 | G247: 0.41 | H247: 0.49 | I247: 10.89 | J247: 13.07 | K247: 64.23 | L247: 77.08 | M247: 0.68 | N247: 0.90 | O247: 35
B249: Ленивые голубцы с мясом | C249: 150 | D249: 160 | E249: 15.03 | F249: 15.91 | G249: 11.54 | H249: 12.22 | I249: 21.30 | J249: 22.55 | K249: 232.33 | L249: 246.00 | M249: 50.09 | N249: 55.86 | O249: 61
B251: Компот из сухофруктов | C251: 180 | D251: 200 | E251: 0.94 | F251: 1.04 | I251: 24.26 | J251: 26.96 | K251: 96.70 | L251: 107.45 | M251: 0.3 | N251: 0.36 | O251: 36
C252: 50 | D252: 50
B253: Хлеб | C253: 40 | D253: 50 | E253: 3.04 | F253: 3.80 | G253: 0.36 | H253: 0.48 | I253: 19.88 | J253: 26.51 | K253: 90.40 | L253: 113.00 | O253: 45
A254: Упл. полдник | B254: Рыба, запеченная в омлете | C254: 90 | D254: 100 | E254: 28.38 | F254: 30.27 | G254: 15.38 | H254: 16.40 | I254: 4.88 | J254: 5.20 | K254: 271.25 | L254: 289.33 | M254: 0.26 | N254: 0.33 | O254: 44
B256: Чай с сахаром | C256: 150 | D256: 180 | E256: 10.80 | F256: 12.00 | G256: 2.75 | H256: 3.06 | I256: 11.70 | J256: 13.00 | K256: 44.35 | L256: 49.28 | M256: 0.02 | N256: 0.03 | O256: 26
B258: Икра свекольная | C258: 30 | D258: 40 | O258: 15
B259: Хлеб | C259: 30 | D259: 40 | E259: 1.84 | F259: 2.45 | G259: 0.64 | H259: 0.85 | I259: 12.56 | J259: 16.75 | K259: 64.33 | L259: 85.77 | O259: 45
B260: Фрукты | C260: 200 | D260: 200 | E260: 0.80 | F260: 0.80 | G260: 0.80 | H260: 0.80 | I260: 19.60 | J260: 19.60 | K260: 88.00 | L260: 88.00 | M260: 10.40 | N260: 10.40 | O260: 52
A262: Итого за день | E262: 77.69 | F262: 89.85 | G262: 43.89 | H262: 51.64 | I262: 198.96 | J262: 249.61 | K262: 1437.71 | L262: 1751.98 | M262: =SUM(M239:M261) -> 67.35 | N262: =SUM(N239:N261) -> 74.94
A271: День 9 четверг
A272: Завтрак | B272: Каша манная молочная | C272: 150 | D272: 200 | E272: 1.25 | F272: 1.42 | G272: 0.11 | H272: 0.13 | I272: 10.29 | J272: 11.66 | K272: 72.00 | L272: 81.60 | M272: 1.56 | N272: 2.08 | O272: 6
B274: Какао с молоком | C274: 150 | D274: 180 | E274: 4.65 | F274: 5.27 | G274: 4.80 | H274: 5.44 | I274: 16.77 | J274: 19.00 | K274: 127.37 | L274: 144.35 | M274: 1.20 | N274: 1.43 | O274: 30
B275: Сыр | C275: 8 | D275: 12 | E275: 2.08 | F275: 3.12 | G275: 2.15 | H275: 4.54 | K275: 28.16 | L275: 42.24 | M275: 0.10 | N275: 0.13 | O275: 46
B276: Хлеб с маслом | C276: 30 | D276: 40 | E276: 6.00 | F276: 7.99 | G276: 0.69 | H276: 0.92 | I276: 12.61 | J276: 16.81 | K276: 101.73 | L276: 135.64 | O276: 45
A277: 2 завтрак | B277: Сок | C277: 200 | D277: 200 | E277: 2 | F277: 2 | G277: 0.2 | H277: 0.2 | I277: 20.2 | J277: 20.2 | K277: 86.34 | L277: 86.34 | M277: 4 | N277: 4 | O277: 49
A279: обед | B279: Щи со сметаной, на мясном бульоне | C279: 150 | D279: 200 | E279: 2.95 | F279: 3.34 | G279: 4.80 | H279: 5.44 | I279: 6.87 | J279: 7.79 | K279: 94.50 | L279: 107.10 | M279: 3.32 | N279: 5.37 | O279: 42
B280: Котлета мясная | C280: 50 | D280: 60 | E280: 8.49 | F280: 10.42 | G280: 6.36 | H280: 7.87 | I280: 8.56 | J280: 10.47 | K280: 110.00 | L280: 154.00 | M280: 1.01 | N280: 1.26 | O280: 33
B282: Гороховое пюре | C282: 150 | D282: 160 | E282: 12.66 | F282: 14.61 | G282: 1.25 | H282: 1.44 | I282: 25.18 | J282: 29.05 | K282: 151.32 | L282: 174.60 | O282: 59
B283: Салат из свежих овощей | C283: 50 | D283: 60 | E283: 0.59 | F283: 0.59 | G283: 4.28 | H283: 4.28 | I283: 2.28 | J283: 2.28 | K283: 56.58 | L283: 56.58 | M283: 22.08 | N283: 23.88 | O283: 54
B285: Компот из сухофруктов | C285: 150 | D285: 180 | E285: 0.94 | F285: 1.04 | I285: 24.26 | J285: 26.96 | K285: 96.70 | L285: 107.45 | M285: 0.30 | N285: 0.36 | O285: 36
B287: Хлеб | C287: 40 | D287: 50 | E287: 3.04 | F287: 3.80 | G287: 0.36 | H287: 0.48 | I287: 19.88 | J287: 26.51 | K287: 90.40 | L287: 113.00 | O287: 45
A289: Упл. полдник | B289: Творожно-яблочная запеканка | C289: 90 | D289: 100 | E289: 11.10 | F289: 13.56 | G289: 11.73 | H289: 14.34 | I289: 11.44 | J289: 13.98 | K289: 194.89 | L289: 238.20 | M289: 0.38 | N289: 0.50 | O289: 23
B290: Со сгущенкой | C290: 20 | D290: 30 | E290: 0.74 | F290: 1.10 | G290: 1.11 | H290: 1.66 | I290: 1.59 | J290: 2.38 | K290: 26.73 | L290: 40.09 | M290: 0.01 | N290: 0.01 | O290: 68
B292: Чай с молоком с сахаром | C292: 150 | D292: 180 | E292: 0.11 | F292: 0.13 | G292: 0.02 | H292: 0.03 | I292: 11.04 | J292: 12.42 | K292: 43.20 | L292: 48.60 | M292: 1.42 | N292: 2.83 | O292: 27
B294: Хлеб | C294: 30 | D294: 40 | E294: 1.84 | F294: 2.45 | G294: 0.64 | H294: 0.85 | I294: 12.56 | J294: 16.75 | K294: 64.33 | L294: 85.77 | O294: 45
B296: Вафли | C296: 40 | D296: 40 | E296: 0.41 | F296: 1.17 | G296: 0.47 | H296: 1.33 | I296: 10.85 | J296: 31.00 | K296: 49.59 | L296: 141.67 | O296: 69
A298: Итого за день | E298: =SUM(E272:E297) -> 58.85 | F298: 72.01 | G298: 38.97 | H298: 48.95 | I298: 194.38 | J298: 247.26 | K298: 1393.84 | L298: 1757.23 | M298: 35.38 | N298: 41.85
A300: День 10 пятница
A301: Завтрак | B301: Каша геркулесовая молочная | C301: 150 | D301: 200 | E301: 1.20 | F301: 1.35 | G301: 1.90 | H301: 2.15 | I301: 16.20 | J301: 18.29 | K301: 108.30 | L301: 122.27 | M301: 1.56 | N301: 2.08 | O301: 56
B303: Кофейный напиток | C303: 150 | D303: 180 | E303: 3.66 | F303: 4.12 | G303: 4.04 | H303: 4.54 | I303: 17.20 | J303: 19.35 | K303: 116.27 | L303: 130.80 | M303: 0.34 | N303: 0.98 | O303: 29
B304: Тертая морковь с сахаром | C304: 40 | D304: 50 | E304: 0.59 | F304: 0.59 | G304: 4.28 | H304: 4.28 | I304: 2.28 | J304: 2.28 | K304: 56.58 | L304: 56.58 | M304: 22.08 | N304: 23.88 | O304: 37
A306: 2 завтрак | B306: Сок | C306: 200 | D306: 200 | E306: 2.00 | F306: 2.00 | G306: 0.20 | H306: 0.20 | I306: 20.20 | J306: 20.20 | K306: 86.34 | L306: 86.34 | M306: 4.00 | N306: 4.00 | O306: 49
A308: обед | B308: Суп с крупой на курином бульоне со сметаной | C308: 180 | D308: 180 | E308: 6.19 | F308: 6.96 | G308: 3.70 | H308: 4.16 | I308: 26.66 | J308: 30.00 | K308: 164.80 | L308: 185.39 | M308: 20.21 | N308: 23.34 | O308: 39
B310: Куриные катлеты | C310: 50 | D310: 60 | E310: 8.98 | F310: 10.26 | G310: 9.50 | H310: 10.85 | I310: 7.31 | J310: 8.35 | K310: 150.50 | L310: 172.00 | M310: 1.26 | N310: 1.26 | O310: 14
B312: Картофельное пюре | C312: 150 | D312: 160 | E312: 2.85 | F312: 3.20 | G312: 0.45 | H312: 0.51 | I312: 19.08 | J312: 21.81 | K312: 128.10 | L312: 146.40 | M312: 14.59 | N312: 19.40 | O312: 9
C313: 70 | D313: 70
B314: Салат из свежих овощей | C314: 50 | D314: 60 | E314: 0.59 | F314: 0.59 | G314: 4.28 | H314: 4.28 | I314: 2.28 | J314: 2.28 | K314: 56.58 | L314: 56.58 | M314: 22.08 | N314: 23.88 | O314: 36
B316: Компот из сухофруктов | C316: 150 | D316: 180 | E316: 0.94 | F316: 1.04 | I316: 24.26 | J316: 26.96 | K316: 96.70 | L316: 107.45 | M316: 0.30 | N316: 0.36 | O316: 36
B317: Хлеб | C317: 40 | D317: 50 | E317: 3.04 | F317: 3.80 | G317: 0.36 | H317: 0.48 | I317: 19.88 | J317: 26.51 | K317: 90.40 | L317: 113.00 | O317: 45
A319: Упл. полдник | B319: Сдобная выпечка | C319: 50 | D319: 60 | E319: 6.6 | F319: 7.22 | G319: 6.15 | H319: 6.74 | I319: 4.06 | J319: 4.45 | K319: 201.06 | L319: 220.21 | M319: 0.26 | N319: 0.33 | O319: 53
B321: Чай с молоком | C321: 150 | D321: 180 | E321: 0.71 | F321: 0.8 | G321: 0.88 | H321: 0.99 | I321: 12 | J321: 13.5 | K321: 49.79 | L321: 56.01 | M321: 1.19 | N321: 1.2 | O321: 28
B323: Фрукты | C323: 200 | D323: 200 | E323: 0.64 | F323: 0.64 | G323: 0.64 | H323: 0.64 | I323: 15.68 | J323: 15.68 | K323: 70.4 | L323: 70.4 | M323: 10.4 | N323: 10.4 | O323: 52
A324: Итого за день | E324: 43.10 | F324: 50.27 | G324: 33.07 | H324: 37.90 | I324: 201.49 | J324: 240.55 | K324: 1438.59 | L324: 1682.29 | M324: 76.19 | N324: 84.10
A330: Итого за весь период | E330: 636.65 | F330: 746.19 | G330: 464.35 | H330: 543.86 | I330: 2091.62 | J330: 2557.66 | K330: 1514.16 | L330: 19267.87 | M330: 633.90 | N330: 741.60
A332: Среднее значение за период | E332: 63.66 | F332: 74.61 | G332: 46.43 | H332: 54.36 | I332: 209.16 | J332: 255.76 | K332: 1516.41 | L332: 1926.78 | M332: 63.29 | N332: 74.16
A335: Примечание: Использованная литература при составлении меню Сборник технических нормативов.- Сборник рецептур блюд и кулинарных изделий для питания детей в дошкольных организациях.. Под. ред. Могильного М.П., Тутельяна В.А.-М.: ДеЛи плюс, 2014 .-584с.

Sheet Лист2

Sheet Лист3
